Cogmind - Beta 13 @@@ ROGUE MODE // 2024.05.27 @ 21:58:48 // Winter2022/Polymind Player: Phosphorus Result: Self-destructed Performance ------------- Evolutions (4) 2000 Regions Visited (13) 2600 Robots Destroyed (38) 190 Value Destroyed (1431) 1431 Prototype IDs (38) 760 Alien Tech Used (0) 0 Bonus (6506) 6506 TOTAL SCORE: 13477 Bonus ------- Polymind Skill 5680 High Alert Combat Kills 11 Follower Combat Kills 215 Aligned with FarCom 300 Met Imprinter 300 Cogmind --------- Core Integrity 850/850 Matter 100/100 Energy 913/915 System Corruption 0% Temperature Cool (4) Movement Hovering (56) Location -6/Factory Parts ------- > --- POWER (2) -------- Light Particle Reactor Compact Particle Reactor > --- PROPULSION (4) --- Antigrav Array Antigrav Array > --- UTILITY (12) ----- Experimental Heat Sink Experimental Heat Sink Experimental Heat Sink Advanced Energy Well Gravity Neutralizer Improved Phase Shifter Improved Core Shielding Improved Weapon Shielding Light Regenerative Plating Remote Force Field Advanced Hacking Suite Advanced System Shield > --- WEAPON (4) ------- Arc Projector Arc Projector Arc Projector Arc Projector > --- INVENTORY (1) ---- (None) Peak State ------------ > --- POWER ------------ Light Particle Reactor Compact Particle Reactor > --- PROPULSION ------- Antigrav Array Antigrav Array > --- UTILITY ---------- Experimental Heat Sink Experimental Heat Sink Experimental Heat Sink Advanced Energy Well Gravity Neutralizer Improved Phase Shifter Improved Core Shielding Improved Weapon Shielding Light Regenerative Plating Remote Force Field Advanced Hacking Suite Advanced System Shield > --- WEAPON ----------- Arc Projector Arc Projector Arc Projector Arc Projector > --- INVENTORY -------- (None) [Rating: 139] Favorites ----------- Power Heavy Deuterium Engine Engine Heavy Deuterium Engine Power Core Light Nuclear Core Reactor Light Particle Reactor Propulsion Carbon-fiber Leg Leg Carbon-fiber Leg Hover Unit Combat Antigrav System Flight Unit VTOL Module Utility EX Chip 1 Device Experimental Heat Sink Storage Advanced Energy Well Processor Advanced Launcher Guidance Computer Hackware EX Chip 1 Protection Improved Core Shielding Weapon Arc Projector Energy Gun Arc Projector Ballistic Gun Autogun Special Melee Weapon Datajack Build | -11 -10 -10 -9 -9 -9 -8 -8 -7 -7 -7 -7 -6 -6 ------- Run | Yrd Mat Min Mat Min Exi Min Mat Fac Low Low Zio Pro Fac Slots Evolved . | . . . . . . . . . . . . . . Power . | . . . . . . . . . . . . . . Propulsion . | . . . . . . . . . . . . . . Utility . | . . . . . . . . . . . . . . Weapon . | . . . . . . . . . . . . . . Parts Attached . | . . . . . . . . . . . . . . Power . | . . . . . . . . . . . . . . Engine . | . . . . . . . . . . . . . . Core . | . . . . . . . . . . . . . . Reactor . | . . . . . . . . . . . . . . Propulsion . | . . . . . . . . . . . . . . Treads . | . . . . . . . . . . . . . . Leg . | . . . . . . . . . . . . . . Wheel . | . . . . . . . . . . . . . . Hover . | . . . . . . . . . . . . . . Flight . | . . . . . . . . . . . . . . Utility . | . . . . . . . . . . . . . . Device . | . . . . . . . . . . . . . . Storage . | . . . . . . . . . . . . . . Processor . | . . . . . . . . . . . . . . Hackware . | . . . . . . . . . . . . . . Protection . | . . . . . . . . . . . . . . Artifact . | . . . . . . . . . . . . . . Weapon . | . . . . . . . . . . . . . . Energy Gun . | . . . . . . . . . . . . . . Energy Cannon . | . . . . . . . . . . . . . . Ballistic Gun . | . . . . . . . . . . . . . . Ballistic Cannon . | . . . . . . . . . . . . . . Launcher . | . . . . . . . . . . . . . . Special Weapon . | . . . . . . . . . . . . . . Impact Weapon . | . . . . . . . . . . . . . . Slashing Weapon . | . . . . . . . . . . . . . . Piercing Weapon . | . . . . . . . . . . . . . . Special Melee Weapon . | . . . . . . . . . . . . . . Unidentified Prototypes . | . . . . . . . . . . . . . . Parts Lost 13 | . . . 1 . . . 1 2 9 . . . . Power 2 | . . . 1 . . . . . 1 . . . . Propulsion . | . . . . . . . . . . . . . . Utility 10 | . . . . . . . 1 2 7 . . . . Weapon 1 | . . . . . . . . . 1 . . . . Highest Loss Streak 8 | . . . 1 . . . 1 1 8 . . . . To Critical Strikes . | . . . . . . . . . . . . . . Average Slot Usage (%) 84 | . 100 100 92 83 85 96 92 90 48 54 90 90 90 Engine 3 | . 20 16 9 . . 3 3 3 . . . . . Reactor 1 | . . . . . . . . . . . 8 9 9 Leg 8 | . . 31 33 33 27 . . . . . . . . Hover 4 | . 40 1 . . . 3 3 3 3 2 8 9 9 Flight 1 | . . . . . . . . . . 10 4 . . Device 14 | . . 31 33 33 27 . . . . . 24 27 27 Processor 6 | . . . . . 2 15 15 15 11 8 . . . Hackware 27 | . 20 . . . 11 69 65 63 32 22 8 9 9 Protection 2 | . . . . . . . . . . . 11 13 13 Energy Gun 8 | . . 15 16 16 13 3 3 3 . . 16 18 18 Naked Turns 4 | . . 2 . . 1 . . . . 1 . . . Heaviest Build 63 | . 4 16 16 7 21 21 21 21 21 8 63 63 63 Greatest Support 64 | 3 12 30 30 30 30 21 21 21 21 21 64 64 64 Greatest Overweight (x) . | . . . . . . . . . . . . . . Average Overweight (x) . | . . . . . . . . . . . . . . Largest Inventory Capacity 2 | . 1 1 1 1 2 2 2 2 2 2 1 1 1 Average Capacity 1 | . 1 . 1 1 1 2 2 2 2 1 . 1 1 Most Carried 2 | . . 1 1 1 2 2 2 2 2 1 . 1 . Average Carried . | . . . 1 1 1 2 2 2 1 . . . . Final Capacity 2 | . 1 1 1 1 2 2 2 2 2 . 1 1 1 Final Carried 2 | . . 1 1 1 2 2 2 2 1 . . . . Class Distribution -------------------- 47% | Thief 25% | Grunt 20% | Data Miner 3% | Operator Dominant Class ---------------- Operator | -10/Materials Grunt | -10/Mines Grunt | -9/Materials Grunt | -9/Mines Grunt | -9/Exiles Thief | -8/Mines Thief | -8/Materials Thief | -7/Factory Thief | -7/Lower Caves Thief | -7/Lower Caves Data Miner | -7/Zion Data Miner | -6/Proximity Caves Data Miner | -6/Factory Resources | -11 -10 -10 -9 -9 -9 -8 -8 -7 -7 -7 -7 -6 -6 ----------- Run | Yrd Mat Min Mat Min Exi Min Mat Fac Low Low Zio Pro Fac Matter Collected 4 | . . . . . . . . . . 4 . . . Remotely . | . . . . . . . . . . . . . . Salvage Created 1927 | . . 162 307 . . 240 267 237 . . 42 672 . Parts 97 | . . 12 24 . . 1 19 19 . . 2 20 . Haulers Intercepted . | . . . . . . . . . . . . . . Recyclers Shooed . | . . . . . . . . . . . . . . Parts Field Recycled . | . . . . . . . . . . . . . . Retrieved Matter . | . . . . . . . . . . . . . . Parts Self-Destructed 14 | . . . . . . . . . 8 1 . 5 . Prevented 24 | . . . . . . . . . 2 . 2 20 . Kills | -11 -10 -10 -9 -9 -9 -8 -8 -7 -7 -7 -7 -6 -6 ------- Run | Yrd Mat Min Mat Min Exi Min Mat Fac Low Low Zio Pro Fac Combat Hostiles Destroyed 32 | . . 4 8 . . 3 4 4 . . 1 8 . Guns 29 | . . 4 8 . . 3 3 3 . . 1 7 . AOE 1 | . . . . . . . 1 . . . . . . Classes Destroyed 12 | . . 3 2 . . 1 2 2 . . . 2 . Worker 1 | . . . . . . . . 1 . . . . . Tunneler 1 | . . 1 . . . . . . . . . . . Carrier 1 | . . . . . . . 1 . . . . . . Minesweeper 1 | . . . . . . . . . . . . 1 . Operator 1 | . . . . . . . 1 . . . . . . Watcher 1 | . . . 1 . . . . . . . . . . Swarmer 5 | . . . 3 . . . . . . . 1 1 . Grunt 12 | . . 2 1 . . 2 2 . . . . 5 . Brawler 1 | . . . . . . 1 . . . . . . . Duelist 1 | . . . . . . . . . . . . 1 . Sentry 12 | . . 2 4 . . . 2 3 . . . 1 . Demolisher 1 | . . . . . . . . 1 . . . . . Best Kill Streak 4 | . . 3 4 . . 3 2 2 . . 1 4 . Combat Bots Only 4 | . . 2 3 . . 3 2 1 . . 1 4 . Max Kills in Single Turn 2 | . . 1 1 . . 1 1 2 . . 1 1 . Gunslinging . | . . . . . . . . . . . . . . Exploded 1 | . . . . . . . 1 . . . . . . Melee . | . . . . . . . . . . . . . . Uniques/NPCs Destroyed . | . . . . . . . . . . . . . . Combat | -11 -10 -10 -9 -9 -9 -8 -8 -7 -7 -7 -7 -6 -6 -------- Run | Yrd Mat Min Mat Min Exi Min Mat Fac Low Low Zio Pro Fac Hostile Shots Fired 220 | . 11 12 45 . . 2 6 72 30 12 3 27 . Missed 91 | . 6 6 13 . . 1 1 29 10 10 1 14 . Damage Taken 1493 | . 48 92 368 . . 17 118 347 378 36 17 72 . Core 573 | . 20 62 115 . . 17 49 97 158 36 4 15 . Absorbed by Shields 80 | . . . . . . . . . . . 16 64 . Redirected to Shielding 24 | . . . . . . . . . . . 4 20 . Ignored by Resistances 61 | . . . . . . . . . . . 10 51 . Regen/Repaired (Parts) 7 | . . . . . . . . . . . . 7 . Core Remaining (%) 76 | 100 . 67 . . . 67 91 . . . . 55 . Volleys Fired 77 | . . 9 43 . . . . . . . 2 23 . Largest 4 | . . 1 1 . . . . . . . 4 4 . Hottest 220 | . . 75 75 . . . . . . . 220 220 . Shots Fired 194 | . . 9 43 . . 9 17 15 1 . 8 92 . Gun 194 | . . 9 43 . . 9 17 15 1 . 8 92 . Cannon . | . . . . . . . . . . . . . . Launcher . | . . . . . . . . . . . . . . Special . | . . . . . . . . . . . . . . Kinetic . | . . . . . . . . . . . . . . Thermal 52 | . . 9 43 . . . . . . . . . . Explosive . | . . . . . . . . . . . . . . Electromagnetic 142 | . . . . . . 9 17 15 1 . 8 92 . Robot Hit Streak 19 | . . 3 4 . . 5 9 12 . . 2 19 . Robot Miss Streak 4 | . . 1 2 . . 1 2 3 2 . 4 4 . Penetration Max . | . . . . . . . . . . . . . . Secondary Targets 1 | . . . . . . . . . . . . 1 . Max Gunslinging Chain 1 | . . . . . . . . . . . . 1 . Autonomous 42 | . . . . . . 9 17 15 1 . . . . Shots Hit Robots 136 | . 1 6 26 . . 9 15 14 . . 3 62 . Core Hits 75 | . . 5 9 . . 6 11 13 1 . 2 28 . Critical Kills . | . . . . . . . . . . . . . . Critical Parts Destroyed . | . . . . . . . . . . . . . . Critical Strikes 6 | . . 2 1 . . . . 3 . . . . . Burn 3 | . . 2 1 . . . . . . . . . . Corrupt 3 | . . . . . . . . 3 . . . . . Melee Attacks 3 | . 3 . . . . . . . . . . . . Impact . | . . . . . . . . . . . . . . Slashing . | . . . . . . . . . . . . . . Piercing . | . . . . . . . . . . . . . . Sneak Attacks 1 | . 1 . . . . . . . . . . . . Combat Hostiles . | . . . . . . . . . . . . . . Follow-up Attacks . | . . . . . . . . . . . . . . Damage Inflicted 2677 | . 6 136 548 . . 205 521 397 19 . 35 810 . Guns 2428 | . . 125 545 . . 205 382 397 . . 35 739 . Cannons . | . . . . . . . . . . . . . . Explosions 206 | . . . . . . . 135 . . . . 71 . Melee . | . . . . . . . . . . . . . . Ramming 43 | . 6 11 3 . . . 4 . 19 . . . . Kinetic . | . . . . . . . . . . . . . . Thermal 876 | . . 125 545 . . . 135 . . . . 71 . Explosive . | . . . . . . . . . . . . . . Electromagnetic 1758 | . . . . . . 205 382 397 . . 35 739 . Impact . | . . . . . . . . . . . . . . Slashing . | . . . . . . . . . . . . . . Piercing . | . . . . . . . . . . . . . . Highest Corruption 2 | . 2 2 . . . . . . . . . . . Average Corruption 2 | . 2 2 . . . . . . . . . . . Corruption Purged . | . . . . . . . . . . . . . . Corruption Blocked . | . . . . . . . . . . . . . . Effects 2 | . . 2 . . . . . . . . . . . Energy Discharges 1 | . . 1 . . . . . . . . . . . Data Loss (minor) 1 | . . 1 . . . . . . . . . . . Overload Shots . | . . . . . . . . . . . . . . Overflow Damage . | . . . . . . . . . . . . . . Projectiles . | . . . . . . . . . . . . . . Explosions . | . . . . . . . . . . . . . . Melee . | . . . . . . . . . . . . . . Knockbacks . | . . . . . . . . . . . . . . Impact . | . . . . . . . . . . . . . . Kinetic . | . . . . . . . . . . . . . . Secondary . | . . . . . . . . . . . . . . Self-Inflicted Damage 48 | . 2 . . . . . 37 . 9 . . . . Shots 1 | . . . . . . . 1 . . . . . . Rammed 9 | . 2 . . . . . 1 . 6 . . . . Targets Rammed 12 | . 2 2 1 . . . 1 . 6 . . . . Kicked 3 | . . 2 1 . . . . . . . . . . Crushed . | . . . . . . . . . . . . . . Highest Temperature 13 | . . 2 2 . . 7 13 10 10 10 . . . Average Temperature 5 | . . 2 2 . . 5 6 5 5 7 . . . Received Heat Transfer 389 | . 12 42 51 . . 9 36 114 66 27 . 32 . Siege Activations . | . . . . . . . . . . . . . . Robots Corrupted 4 | . . . . . . . 1 1 . . . 2 . Combat Hostiles 2 | . . . . . . . . 1 . . . 1 . Parts Fried 9 | . . . . . . . . 1 . . 1 7 . Impact Corruptions . | . . . . . . . . . . . . . . Robots Melted . | . . . . . . . . . . . . . . Combat Hostiles . | . . . . . . . . . . . . . . Parts Melted 3 | . . . 3 . . . . . . . . . . Heat Transferred 1606 | . . 370 1036 . . . 150 . . . . 50 . Parts Sabotaged . | . . . . . . . . . . . . . . Parts Stolen . | . . . . . . . . . . . . . . Parts Stripped . | . . . . . . . . . . . . . . Power Chain Reactions 3 | . . . . . . . 2 . . . . 1 . Alert | -11 -10 -10 -9 -9 -9 -8 -8 -7 -7 -7 -7 -6 -6 ------- Run | Yrd Mat Min Mat Min Exi Min Mat Fac Low Low Zio Pro Fac Peak Influence 426 | . 64 131 426 165 . 70 172 182 . . . . 119 Initial 165 | . . 24 50 165 . . 27 77 . . . . 119 Average 126 | . 34 91 258 165 . 35 106 119 . . . . 119 Maximum Alert Level 2 | . . . 2 . . . . . . . . . . Low Security (%) 85 | 100 100 100 31 100 . 100 100 100 . . . . 100 Level 1 13 | . . . 61 . . . . . . . . . . Level 2 1 | . . . 7 . . . . . . . . . . Level 3 . | . . . . . . . . . . . . . . Level 4 . | . . . . . . . . . . . . . . Level 5 . | . . . . . . . . . . . . . . High Security . | . . . . . . . . . . . . . . Max Security . | . . . . . . . . . . . . . . Squads Dispatched 6 | . 2 1 . . . . 3 . . . . . . Investigation 1 | . . 1 . . . . . . . . . . . Extermination . | . . . . . . . . . . . . . . Reinforcement 2 | . 2 . . . . . . . . . . . . Assault . | . . . . . . . . . . . . . . Garrison 3 | . . . . . . . 3 . . . . . . Intercept . | . . . . . . . . . . . . . . Searches Triggered . | . . . . . . . . . . . . . . Construction Impeded . | . . . . . . . . . . . . . . Haulers Reinforced . | . . . . . . . . . . . . . . Active Scanning Responses . | . . . . . . . . . . . . . . Cargo Convoy Interrupts . | . . . . . . . . . . . . . . Stealth | -11 -10 -10 -9 -9 -9 -8 -8 -7 -7 -7 -7 -6 -6 --------- Run | Yrd Mat Min Mat Min Exi Min Mat Fac Low Low Zio Pro Fac Distress Signals 4 | . 1 . 2 . . . 1 . . . . . . Communications Jammed . | . . . . . . . . . . . . . . Distress Signals . | . . . . . . . . . . . . . . Times Spotted 77 | . 10 5 18 . . 3 5 3 13 9 1 10 . Peak Tracking Total 9 | . 9 2 7 . . 3 2 1 5 4 1 5 . Tactical Retreats 10 | . . . 2 . . . . . 5 2 . 1 . Traps | -11 -10 -10 -9 -9 -9 -8 -8 -7 -7 -7 -7 -6 -6 ------- Run | Yrd Mat Min Mat Min Exi Min Mat Fac Low Low Zio Pro Fac Traps Triggered . | . . . . . . . . . . . . . . Indirectly . | . . . . . . . . . . . . . . Trap Hack Attempts 28 | . 28 . . . . . . . . . . . . Triggered . | . . . . . . . . . . . . . . Disarmed . | . . . . . . . . . . . . . . Reprogrammed 17 | . 4 . . . . . 3 10 . . . . . Reused . | . . . . . . . . . . . . . . Traps Extracted . | . . . . . . . . . . . . . . Installed 1 | . . . . . . . . . . . . 1 . Triggered 3 | . . . . . . . . . 2 . . 1 . Most Traps Carried 1 | . . . . . . . . . . . . 1 . Machines | -11 -10 -10 -9 -9 -9 -8 -8 -7 -7 -7 -7 -6 -6 ---------- Run | Yrd Mat Min Mat Min Exi Min Mat Fac Low Low Zio Pro Fac Machines Disabled . | . . . . . . . . . . . . . . Max in Single Turn . | . . . . . . . . . . . . . . Garrison Access 1 | . . . . . . . . . . . . . 1 Machines Repaired . | . . . . . . . . . . . . . . Machines Dismantled . | . . . . . . . . . . . . . . Machines Sabotaged . | . . . . . . . . . . . . . . Overloaded Fab Kills . | . . . . . . . . . . . . . . Hacking | -11 -10 -10 -9 -9 -9 -8 -8 -7 -7 -7 -7 -6 -6 --------- Run | Yrd Mat Min Mat Min Exi Min Mat Fac Low Low Zio Pro Fac Machines Accessed 12 | . 2 1 3 . 1 . 2 2 . . . . 1 Terminals 8 | . 2 . 2 . . . 2 2 . . . . . Fabricators . | . . . . . . . . . . . . . . Repair Stations 1 | . . . 1 . . . . . . . . . . Recycling Units . | . . . . . . . . . . . . . . Scanalyzers . | . . . . . . . . . . . . . . Garrison Access 1 | . . . . . . . . . . . . . 1 Total Hacks 42 | . 3 1 9 . 1 . 12 15 . . . . 1 Successful 31 | . 2 1 4 . 1 . 11 11 . . . . 1 Failed 10 | . 1 . 5 . . . . 4 . . . . . Catastrophic 2 | . 1 . 1 . . . . . . . . . . Database Lockouts 1 | . . . . . . . 1 . . . . . . Manual 25 | . 1 . 4 . 1 . 10 9 . . . . . Terminals 35 | . 3 . 5 . . . 12 15 . . . . . Fabricators . | . . . . . . . . . . . . . . Repair Stations 4 | . . . 4 . . . . . . . . . . Recycling Units . | . . . . . . . . . . . . . . Scanalyzers . | . . . . . . . . . . . . . . Garrison Access 1 | . . . . . . . . . . . . . 1 Terminal Hacks 27 | . 2 1 3 . 1 . 11 9 . . . . . Robot Analysis 3 | . . . . . . . 3 . . . . . . Prototype ID Bank 3 | . 1 . . . . . 1 1 . . . . . Open Door 1 | . . 1 . . . . . . . . . . . Level Access Points 1 | . . . . . . . 1 . . . . . . Branch Access Points 3 | . . . 1 . . . 1 1 . . . . . Terminal Index 1 | . . . . . . . . 1 . . . . . Alert Level 1 | . . . . . . . 1 . . . . . . Locate Traps 3 | . . . 1 . . . 1 1 . . . . . Reprogram Traps 4 | . . . . . . . 1 3 . . . . . Registered Components 1 | . . . . . . . . 1 . . . . . Zone Layout 5 | . 1 . 1 . . . 2 1 . . . . . Derelict Proto ID Bank 1 | . . . . . 1 . . . . . . . . Fabricator Hacks . | . . . . . . . . . . . . . . Repair Station Hacks 1 | . . . 1 . . . . . . . . . . Scan Component 1 | . . . 1 . . . . . . . . . . Recycling Unit Hacks . | . . . . . . . . . . . . . . Scanalyzer . | . . . . . . . . . . . . . . Garrison Access Hacks 1 | . . . . . . . . . . . . . 1 Seal Access 1 | . . . . . . . . . . . . . 1 Unauthorized Hacks 2 | . . . . . . . . 2 . . . . . Terminals 2 | . . . . . . . . 2 . . . . . Botnet 1 | . . . . . . . . 1 . . . . . Operators 1 | . . . . . . . . 1 . . . . . Fabricators . | . . . . . . . . . . . . . . Repair Stations . | . . . . . . . . . . . . . . Recycling Units . | . . . . . . . . . . . . . . Scanalyzers . | . . . . . . . . . . . . . . Garrison Access . | . . . . . . . . . . . . . . Data Cores Recovered 1 | . . . . . . . 1 . . . . . . Used . | . . . . . . . . . . . . . . Hacking Detections 8 | . 2 . 3 . . . 2 1 . . . . . Full Trace Events . | . . . . . . . . . . . . . . Feedback Events . | . . . . . . . . . . . . . . Feedback Blocked . | . . . . . . . . . . . . . . Robot Schematics Acquired 3 | . . . . . . . . . . . 3 . . Robots Built . | . . . . . . . . . . . . . . Authchips . | . . . . . . . . . . . . . . Time . | . . . . . . . . . . . . . . Total Robot Build Rating . | . . . . . . . . . . . . . . Part Schematics Acquired 14 | . . . . . . . . . . . 14 . . Parts Built . | . . . . . . . . . . . . . . Authchips . | . . . . . . . . . . . . . . Time . | . . . . . . . . . . . . . . Total Part Build Rating . | . . . . . . . . . . . . . . Parts Repaired . | . . . . . . . . . . . . . . Time . | . . . . . . . . . . . . . . Parts Recycled . | . . . . . . . . . . . . . . Recycled Matter . | . . . . . . . . . . . . . . Retrieved Matter . | . . . . . . . . . . . . . . Retrieved Components . | . . . . . . . . . . . . . . Parts Scanalyzed . | . . . . . . . . . . . . . . Part Schematics Acquired . | . . . . . . . . . . . . . . Parts Damaged . | . . . . . . . . . . . . . . Bothacking | -11 -10 -10 -9 -9 -9 -8 -8 -7 -7 -7 -7 -6 -6 ------------ Run | Yrd Mat Min Mat Min Exi Min Mat Fac Low Low Zio Pro Fac Used RIF Installer . | . . . . . . . . . . . . . . Robots Hacked 2 | . 1 . . . . . . . . 1 . . . Non-combat 1 | . 1 . . . . . . . . . . . . Combat 1 | . . . . . . . . . . 1 . . . Robot Hacks Applied 2 | . 1 . . . . . . . . 1 . . . find_terminals 1 | . 1 . . . . . . . . . . . . find_shortcuts 1 | . . . . . . . . . . 1 . . . Relay Couplers Released . | . . . . . . . . . . . . . . Fabnet Peak Effective % . | . . . . . . . . . . . . . . Robots Rewired . | . . . . . . . . . . . . . . Allies Hacked . | . . . . . . . . . . . . . . Hacks Repelled . | . . . . . . . . . . . . . . Allies | -11 -10 -10 -9 -9 -9 -8 -8 -7 -7 -7 -7 -6 -6 -------- Run | Yrd Mat Min Mat Min Exi Min Mat Fac Low Low Zio Pro Fac Total Allies . | . . . . . . . . . . . . . . Largest Group . | . . . . . . . . . . . . . . Highest-Rated Group . | . . . . . . . . . . . . . . Highest-Rated Ally . | . . . . . . . . . . . . . . Total Orders . | . . . . . . . . . . . . . . Ally Attacks 20 | . . . . . . . . . 20 . . . . Total Damage 1005 | . . . . . . . . . 1005 . . . . Kills 7 | . . . . . . . . . 7 . . . . Allies Corrupted . | . . . . . . . . . . . . . . Allies Melted . | . . . . . . . . . . . . . . Turrets Deployed 1 | . . . . . . . . . 1 . . . . Intel | -11 -10 -10 -9 -9 -9 -8 -8 -7 -7 -7 -7 -6 -6 ------- Run | Yrd Mat Min Mat Min Exi Min Mat Fac Low Low Zio Pro Fac Robot Analysis Total 6 | . 1 1 . . . . 3 . . 1 . . . Derelict Logs Recovered 6 | . . 2 . . . . . . 1 . 1 2 . Drone Launches . | . . . . . . . . . . . . . . Drone Recoveries . | . . . . . . . . . . . . . . Exploration | -11 -10 -10 -9 -9 -9 -8 -8 -7 -7 -7 -7 -6 -6 ------------- Run | Yrd Mat Min Mat Min Exi Min Mat Fac Low Low Zio Pro Fac Turns Passed 3329 | 10 118 260 366 29 241 222 263 445 449 198 423 296 9 Spaces Moved 3772 | 19 149 195 222 25 216 278 239 485 507 323 796 302 16 Core 27 | 19 . 4 . . 1 . . . . 2 1 . . Treads . | . . . . . . . . . . . . . . Legs 601 | . . 185 222 25 169 . . . . . . . . Wheels . | . . . . . . . . . . . . . . Hover 2894 | . 149 6 . . 46 278 239 485 507 193 673 302 16 Flight 250 | . . . . . . . . . . 128 122 . . Fastest Speed 32 | 50 56 50 120 120 50 80 80 80 80 32 32 56 56 Average Speed 75 | 50 56 116 120 120 111 80 80 80 80 60 52 56 56 Slowest Speed 120 | 50 56 120 120 120 120 80 80 80 80 80 56 56 56 Overloaded Moves . | . . . . . . . . . . . . . . Propulsion Burnouts . | . . . . . . . . . . . . . . Robots Hopped . | . . . . . . . . . . . . . . Cave-ins Triggered . | . . . . . . . . . . . . . . Exploration Rate (%) 39 | 4 42 44 27 9 64 63 26 16 65 52 84 49 1 Regions Visited 13 Branch Regions 8 Pre-discovered Areas 5 | . . 1 . . . . . . . . 3 1 . Known Exits Taken 3 | . . . 1 . . . 1 1 . . . . . Unknown Exits Taken 10 | 1 1 1 . 1 1 1 . . 1 1 1 1 . Scrap Searched 6 | . . . . . . . . . . 1 4 1 . Spaces Dug . | . . . . . . . . . . . . . . Terrain Destroyed 9 | . . . . . . . 6 . . . . 3 . Melee . | . . . . . . . . . . . . . . Projectile . | . . . . . . . . . . . . . . AOE 9 | . . . . . . . 6 . . . . 3 . Terrain Rammed . | . . . . . . . . . . . . . . Walls Destroyed . | . . . . . . . . . . . . . . Machines Disabled . | . . . . . . . . . . . . . . Actions | -11 -10 -10 -9 -9 -9 -8 -8 -7 -7 -7 -7 -6 -6 --------- Run | Yrd Mat Min Mat Min Exi Min Mat Fac Low Low Zio Pro Fac Total 4120 | 18 181 218 278 24 216 277 310 541 550 323 797 371 16 Wait 235 | . . 12 13 . . . 71 57 37 1 . 44 . Move 3759 | 18 148 194 221 24 215 277 238 484 506 322 795 301 16 Hop . | . . . . . . . . . . . . . . Pick Up 3 | . . 1 . . 1 . . . . . . 1 . Fast Attach . | . . . . . . . . . . . . . . Attach . | . . . . . . . . . . . . . . Detach . | . . . . . . . . . . . . . . Swap . | . . . . . . . . . . . . . . Drop 2 | . . . . . . . . . 1 . . 1 . Fire 77 | . . 9 43 . . . . . . . 2 23 . Melee 3 | . 3 . . . . . . . . . . . . Ram 9 | . 2 . . . . . 1 . 6 . . . . Kick 3 | . . 2 1 . . . . . . . . . . Crush . | . . . . . . . . . . . . . . Escape Stasis . | . . . . . . . . . . . . . . Rewire . | . . . . . . . . . . . . . . Trap 29 | . 28 . . . . . . . . . . 1 . Miscellaneous . | . . . . . . . . . . . . . . Route ------- -11/Scrapyard -10/Materials -10/Mines -9/Materials -9/Mines -9/Exiles -8/Mines -8/Materials (discovered 3 exits: *Fac x3) -7/Factory (discovered 5 exits: *Fac / Sto x2 / *Low x2) -7/Lower Caves -7/Lower Caves -7/Zion -6/Proximity Caves -6/Factory (discovered 1 exit: Low) History --------- Turn | Location | Event 2 | -11/Scrapyard | Discovered new exit (range 16) 11 | -11/Scrapyard | Entered Materials 126 | -10/Materials | Discovered new exit (range 7) 129 | -10/Materials | Entered Mines 133 | -10/Mines | Met a Derelict shopkeep closing up shop 322 | -10/Mines | Discovered new exit (range 16) 329 | -10/Mines | Learned Materials non-interactive machine intel 341 | -10/Mines | Received a Rocket Launcher from a helpful Derelict 389 | -10/Mines | Entered Materials 390 | -9/Materials | Loaded intel: 35 non-interactive machine locations 632 | -9/Materials | Identified exit to Mines 755 | -9/Materials | Entered Mines 779 | -9/Mines | Deemed a non-threat by the Exiles lab entrance 779 | -9/Mines | Discovered new exit (range 5) 784 | -9/Mines | Entered Exiles 817 | -9/Exiles | Met 8R-AWN 834 | -9/Exiles | Met EX-HEX 867 | -9/Exiles | Met EX-BIN 882 | -9/Exiles | Aligned with FarCom system 883 | -9/Exiles | Given EX-Vault access code 914 | -9/Exiles | Opened EX-Vault 939 | -9/Exiles | Warned to stay clear of 0b10 Research branches 974 | -9/Exiles | Met EX-DEC 988 | -9/Exiles | Took control of EX-DEC (ally) 1018 | -9/Exiles | Discovered new exit (range 10) 1025 | -9/Exiles | Left Exiles lab with Deploy-a-Sentry 1025 | -9/Exiles | Entered Mines 1185 | -8/Mines | Discovered new exit (range 14) 1247 | -8/Mines | Entered Materials 1259 | -8/Materials | Identified exit to Factory 1283 | -8/Materials | Garrison activated, responded to threat 1406 | -8/Materials | Central database locked down 1510 | -8/Materials | Entered Factory 1648 | -7/Factory | Discovered new exit (range 15) 1681 | -7/Factory | Identified exit to Storage 1681 | -7/Factory | Identified exit to Lower Caves 1955 | -7/Factory | Entered Lower Caves 1966 | -7/Lower Caves | Learned Factory emergency access door positions 1974 | -7/Lower Caves | DAS Turret deployed 1994 | -7/Lower Caves | Attracted the attention of an 0b10 outpost 2027 | -7/Lower Caves | Lost 8 parts (1p6u1w) 2280 | -7/Lower Caves | Spotted B-75 Beast 2396 | -7/Lower Caves | Discovered new exit (range 12) 2404 | -7/Lower Caves | Entered another Lower Caves area 2601 | -7/Lower Caves | Discovered new exit (range 3) 2602 | -7/Lower Caves | Entered Zion 2616 | -7/Zion | Discovered new exit (range 12) 2642 | -7/Zion | Took control of A8 (ally) 2704 | -7/Zion | Learned Factory security intel 2726 | -7/Zion | Visited the Megawrench Repair Shop 2830 | -7/Zion | Learned location of Quarantine (-2) 2881 | -7/Zion | Rebuked by Imprinter 2910 | -7/Zion | Given the Hacking Drone Bay 2941 | -7/Zion | Learned location of Warlord (-4) 3025 | -7/Zion | Entered Proximity Caves 3091 | -6/Proximity Caves | Attracted the attention of an 0b10 checkpoint 3318 | -6/Proximity Caves | Discovered new exit (range 5) 3321 | -6/Proximity Caves | Entered Factory 3322 | -6/Factory | Identified exit to Lower Caves 3330 | -6/Factory | Self-destructed Last Messages --------------- 03271_ Imp. Melee Analysis Suite fried. 03271_ L-41 Fighter destroyed. 03277_ Corrupted Carbon-fiber Leg self-destruct mechanism malfunctions. 03278_ G-50 Soldier shuts down. 03279_ G-50 Soldier system terminally corrupted. 03279_ Carbon-fiber Leg fried. 03279_ Lgt. Angular Momentum Engine fried. 03281_ Corrupted Carbon-fiber Leg self-destruct mechanism malfunctions. 03284_ Core Shielding self-destruct mechanism malfunctions. 03318_ EXIT=FOUND LOCATION=UNKNOWN GOAL=ESCAPE 03321_ Receiving FarCom transmissions... Loading 1 Lower Caves entrance... Loading Factory emergency access points (x19)... Loading Factory security intel (x13)... 03330_ Connecting with Garrison Access... 03330_ Current location identified: Factory >>Seal Access door sealed. Map ----- +----------------------------------------------------+ | ?????????????????????????????????????????????????? | | ?????????????????????????????????????????????????? | | ?????????????????????????????????????????????????? | | ?????????????????????????????????????????????????? | | ?????????????????????????????????????????????????? | | ?????????????????????????????????????????????????? | | ?????????????????????????????????????????????????? | | ?????????????????????????????????????????????????? | | ?????????????????????????????????????????????????? | | ?????????????????????????????????????????????????? | | ?????????????????????????????????????????????????? | | ?????????????????????????????????????????????????? | | ?????????????????????????????????????????????????? | | ?????????????????????????????????????????????????? | | ?????????????????????????????????????????????????? | | ?????????????????????????????????????????????????? | | ?????????????????????????????????????????????????? | | ?????????????????????????????????????????????????? | | ?????????????????????????????????????????????????? | | ?????????????????????????????????????????????????? | | ?????????????????????????????????????????????????? | | ???????????????####??????????????????????????????? | | ????????????####T ###????????????????????????????? | | ????????????# ############?????????????????? | | ????????????# # """G""" #?????????????????? | | ????????????# # """p""" #?????????????????? | | ????????????# # #?????????????????? | | ????????????# # """ """ #?????????????????? | | ????????????# # """ """ !#?????????????????? | | ????????###+# # """ """ #?????????????????? | | ???????# # #?????????????????? | | ???????# + """ """ +?????????????????? | | ???????# # """ """ #?????????????????? | | ???????# # """ """ #?????????????????? | | ????? # #?????????????????? | | ?????#####+#### # """ """ #?????????????????? | | ??????????????# # """ """ #?????????????????? | | ??????????????# # """ """ +?????????????????? | | ??????????????+ # ????????????????????? | | ??????????????# ########?????????????????????? | | ??????????????# #????????????????????????????? | | ??????????????# #????????????????????????????? | | ??????????????# ?????????????????????????????? | | ??????????????# ?????????????????????????????? | | ??????????????? ?????????????????????????????? | | ????????????????? ?????????????????????????????? | | ?????????????????????????????????????????????????? | | ?????????????????????????????????????????????????? | | ?????????????????????????????????????????????????? | | ?????????????????????????????????????????????????? | +----------------------------------------------------+ Best States ------------- Heat Dissipation 111 Energy Generation 66 Energy Capacity 915 Matter Stores 100 Matter Capacity 100 Sight Range 16 Terrain Scan Density 10 Additional Mass Support 12 Armor Coverage 150 Resistance: KI 25 Resistance: TH 25 Resistance: EM 90 Core Shielding 30 Weapon Shielding 66 Phase Shifting 10 Evasion (%) 63 Launcher Accuracy 40 Target Analysis 6 Core Analysis 8 Armor Integrity Analysis 40 Offensive Hacking 70 Defensive Hacking 56 Item Schematics ----------------- Imp. Trap Scanner | -7/Zion | Archive Mak. Hacking Suite | -7/Zion | Archive Hrd. Heavy Armor Plating | -7/Zion | Archive Imp. Shock Absorption System | -7/Zion | Archive Adv. Signal Interpreter | -7/Zion | Archive Med. Reactive Plating | -7/Zion | Archive Hvy. Pick | -7/Zion | Archive Microactuators | -7/Zion | Archive Adv. Assault Cannon | -7/Zion | Archive Imp. Kinecellerator | -7/Zion | Archive Thermic Laser | -7/Zion | Archive Focal Shield | -7/Zion | Archive Mak. Leg | -7/Zion | Archive Shock Absorption System | -7/Zion | Archive Robot Schematics ------------------ M-28 Smith | -7/Zion | Archive R-06 Scavenger | -7/Zion | Archive A-02 Transporter | -7/Zion | Archive Fabricated ------------ Nothing Alien Tech Used ----------------- None Achievements -------------- Preemptive Strike Challenges ------------ None Polymind | -11 -10 -10 -9 -9 -9 -8 -8 -7 -7 -7 -7 -6 -6 ---------- Run | Yrd Mat Min Mat Min Exi Min Mat Fac Low Low Zio Pro Fac Hosts 5 | . 1 1 . . 1 . . . . 1 1 . . Combat Hostiles 1 | . . . . . . . . . . 1 . . . Allies 3 | . . 1 . . 1 . . . . . 1 . . Unique Host Classes 5 | . 1 1 . . 1 . . . . 1 1 . . Average Host Suspicion 77 | . 72 81 92 1 . 65 89 82 99 60 90 83 2 Unsuspicious Activity 110 | . 12 7 . . 16 . . . . . 75 . . Returns to Shadow . | . . . . . . . . . . . . . . Fuzzy Dispatches . | . . . . . . . . . . . . . . Protomatter Created 303 | . . 30 24 . . . 36 56 54 19 . 84 . Used 216 | . 5 14 . . 33 . . . . 14 150 . . Decayed 76 | . . . 5 . . . . . 29 . . 42 . Highest Spend 150 | . 5 14 . . 33 . . . . 14 150 . . Top 5 Hosts by Kills: R4-UVN(g) (-10/Mines: 12) EX-DEC (-9/Exiles: 11) A8 (-7/Zion: 9) Game ------ Seed ExplosiveWeightRail Manual? 0 Play Time 00:27:56 Cumulative 141.0 hours Start 2024.05.27 @ 18:49:44 End 2024.05.27 @ 21:58:48 Sessions 5 Manual Loads 0 Difficulty Rogue Special Mode Winter2022/Polymind Game No. 76 Rogue 76 Adventurer 0 Explorer 0 Win Type - Total 5 Types 2/0/1/1/0/0/0/1/0 Lore% 82 Gallery% 74 Achievement% 63 Wizard Run 0 Options --------- Layout 0 ASCII 0 Keyboard 1 Movement Numpad Keybinds 0 Fullscreen 1 Font 18/SmallcapsGlow Map View 76x50 Zoom Use 0% Tactical HUD 1 Map Filters NONE Filters NONE Steam 1 RUN: 86610a79-a81d-4f92-9847-2eacbc16d3bc